fUSD/lending_fUSD_20241118
["ID","MTS","AMOUNT","RATE_DAILY","PERIOD"]
[342506314,1731942634188,-500.0,9.998e-05,2]
[342506315,1731942634198,-500.0,9.998e-05,2]
[342506316,1731942634208,-500.0,9.998e-05,2]
[342506317,1731942634217,-500.0,9.998e-05,2]
[342506318,1731942634227,-602.98,9.998e-05,2]
[342506319,1731942634236,-500.0,9.998e-05,2]
[342506320,1731942634247,-500.0,9.998e-05,2]
[342506321,1731942634256,-560.0,9.998e-05,2]
[342506322,1731942634265,-500.0,9.998e-05,2]
[342506323,1731942634275,-500.0,9.998e-05,2]
[342506324,1731942634284,-500.0,9.998e-05,2]
[342506325,1731942634293,-500.0,9.998e-05,2]
[342506326,1731942634302,-500.0,9.998e-05,2]
[342506327,1731942634312,-576.88,9.998e-05,2]
[342506328,1731942634321,-500.0,9.998e-05,2]
[342506329,1731942634330,-500.0,9.998e-05,2]
[342506330,1731942634339,-500.0,9.998e-05,2]
[342506331,1731942634348,-504.99,9.998e-05,2]
[342506332,1731942634357,-500.0,9.998e-05,2]
[342506333,1731942634366,-500.0,9.998e-05,2]
[342506334,1731942634375,-632.4,9.998e-05,2]
[342506335,1731942634385,-500.0,9.998e-05,2]
[342506336,1731942634394,-500.0,9.998e-05,2]
[342506337,1731942634403,-500.0,9.998e-05,2]
[342506338,1731942634412,-500.0,9.998e-05,2]
[342506339,1731942634422,-500.0,9.998e-05,2]
[342506340,1731942634433,-500.0,9.998e-05,2]
[342506341,1731942634442,-500.0,9.998e-05,2]
[342506342,1731942634452,-500.0,9.998e-05,2]
[342506343,1731942634461,-500.0,9.998e-05,2]
[342506344,1731942634470,-500.0,9.998e-05,2]
[342506345,1731942634480,-500.0,9.998e-05,2]
[342506346,1731942634490,-500.0,9.998e-05,2]
[342506347,1731942634499,-646.07,9.998e-05,2]
[342506348,1731942634512,-500.0,9.998e-05,2]
[342506349,1731942634521,-500.0,9.998e-05,2]
[342506350,1731942634531,-500.0,9.998e-05,2]
[342506351,1731942634540,-500.0,9.998e-05,2]
[342506352,1731942634549,-500.0,9.998e-05,2]
[342506353,1731942634559,-500.0,9.998e-05,2]
[342506354,1731942634568,-500.0,9.998e-05,2]
[342506355,1731942634579,-500.0,9.998e-05,2]
[342506356,1731942634590,-500.0,9.998e-05,2]
[342506357,1731942634600,-500.0,9.998e-05,2]
[342506358,1731942634609,-500.0,9.998e-05,2]
[342506359,1731942634618,-500.0,9.998e-05,2]
[342506360,1731942634628,-500.0,9.998e-05,2]
[342506361,1731942634637,-500.0,9.998e-05,2]
[342506362,1731942634646,-500.0,9.998e-05,2]
[342506363,1731942634655,-500.0,9.998e-05,2]
[342506364,1731942634665,-500.0,9.998e-05,2]
[342506365,1731942634674,-500.0,9.998e-05,2]
[342506366,1731942634685,-500.0,9.998e-05,2]
[342506367,1731942634694,-500.0,9.998e-05,2]
[342506368,1731942634704,-500.0,9.998e-05,2]
[342506369,1731942634713,-500.0,9.998e-05,2]
[342506370,1731942634722,-500.0,9.998e-05,2]
[342506371,1731942634731,-636.71,9.998e-05,2]
[342506372,1731942634741,-238.09960543,9.998e-05,2]
[342506373,1731942634750,-500.0,9.998e-05,2]
[342506374,1731942634759,-500.0,9.998e-05,2]
[342506375,1731942634768,-500.0,9.998e-05,2]
[342506376,1731942634778,-500.0,9.998e-05,2]
[342506377,1731942634787,-500.0,9.998e-05,2]
[342506378,1731942634796,-500.0,9.998e-05,2]
[342506379,1731942634806,-500.0,9.998e-05,2]
[342506380,1731942634816,-500.0,9.998e-05,2]
[342506381,1731942634825,-500.0,9.998e-05,2]
[342506382,1731942634835,-851.24,9.998e-05,2]
[342506383,1731942634845,-500.0,9.998e-05,2]
[342506384,1731942634855,-500.0,9.998e-05,2]
[342506385,1731942634865,-307.75343805,9.998e-05,2]
[342506386,1731942634874,-500.0,9.998e-05,2]
[342506387,1731942634884,-500.0,9.998e-05,2]
[342506388,1731942634893,-557.05,9.998e-05,2]
[342506389,1731942634903,-3920.76,9.998e-05,2]
[342506390,1731942634913,-628.0,9.998e-05,2]
[342506391,1731942634922,-5322.37418161,9.999e-05,2]
[342506392,1731942634934,-500.0,9.999e-05,2]
[342506393,1731942634943,-500.0,9.999e-05,2]
[342506394,1731942634953,-500.0,9.999e-05,2]
[342506395,1731942634963,-610.72,9.999e-05,2]
[342506396,1731942634972,-500.0,9.999e-05,2]
[342506397,1731942634981,-500.0,9.999e-05,2]
[342506398,1731942634990,-500.0,9.999e-05,2]
[342506399,1731942635000,-500.0,9.999e-05,2]
[342506400,1731942635009,-500.0,9.999e-05,2]
[342506401,1731942635019,-500.0,9.999e-05,2]
[342506402,1731942635029,-500.0,9.999e-05,2]
[342506403,1731942635038,-500.0,9.999e-05,2]
[342506404,1731942635047,-500.0,9.999e-05,2]
[342506405,1731942635057,-500.0,9.999e-05,2]
[342506406,1731942635067,-500.0,9.999e-05,2]
[342506407,1731942635076,-209.5,9.999e-05,2]
[342506408,1731942635086,-510.22,9.999e-05,2]
[342506409,1731942635096,-230.31,9.999e-05,2]
[342506410,1731942635105,-500.0,9.999e-05,2]
[342506411,1731942635115,-424.67,9.999e-05,2]
[342506412,1731942635125,-500.0,9.999e-05,2]
[342506413,1731942635134,-534.76,9.999e-05,2]
[342506414,1731942635144,-500.0,9.999e-05,2]
[342506415,1731942635153,-500.0,9.999e-05,2]
[342506416,1731942635163,-500.0,9.999e-05,2]
[342506417,1731942635174,-500.0,9.999e-05,2]
[342506418,1731942635184,-500.0,9.999e-05,2]
[342506419,1731942635194,-500.0,9.999e-05,2]
[342506420,1731942635203,-410.27,9.999e-05,2]
[342506421,1731942635213,-551.81,9.999e-05,2]
[342506422,1731942635223,-500.0,9.999e-05,2]
[342506423,1731942635232,-240.71,9.999e-05,2]
[342506424,1731942635241,-500.0,9.999e-05,2]
[342506425,1731942635251,-500.0,9.999e-05,2]
[342506426,1731942635260,-197.32,9.999e-05,2]
[342506427,1731942635270,-500.0,9.999e-05,2]
[342506428,1731942635279,-500.0,9.999e-05,2]
[342506429,1731942635289,-500.0,9.999e-05,2]
[342506430,1731942635299,-500.0,9.999e-05,2]
[342506431,1731942635309,-500.0,9.999e-05,2]
[342506432,1731942635319,-500.0,9.999e-05,2]
[342506433,1731942635328,-500.0,9.999e-05,2]
[342506434,1731942635338,-500.0,9.999e-05,2]
[342506435,1731942635348,-500.0,9.999e-05,2]
[342506436,1731942635357,-500.0,9.999e-05,2]
[342506437,1731942635367,-500.0,9.999e-05,2]
[342506438,1731942635376,-500.0,9.999e-05,2]
[342506439,1731942635386,-500.0,9.999e-05,2]
[342506440,1731942635396,-325.17,9.999e-05,2]
[342506441,1731942635405,-500.0,9.999e-05,2]
[342506442,1731942635414,-516.18,9.999e-05,2]
[342506443,1731942635424,-500.0,9.999e-05,2]
[342506444,1731942635434,-170.05,9.999e-05,2]
[342506445,1731942635444,-500.0,9.999e-05,2]
[342506446,1731942635453,-195.55,9.999e-05,2]
[342506447,1731942635463,-301.09,9.999e-05,2]
[342506448,1731942635473,-385.09,9.999e-05,2]
[342506449,1731942635483,-237.51,9.999e-05,2]
[342506450,1731942635493,-500.0,9.999e-05,2]
[342506451,1731942635502,-500.0,9.999e-05,2]
[342506452,1731942635512,-500.0,9.999e-05,2]
[342506453,1731942635523,-500.0,9.999e-05,2]
[342506454,1731942635533,-500.0,9.999e-05,2]
[342506455,1731942635543,-500.0,9.999e-05,2]
[342506456,1731942635552,-500.0,9.999e-05,2]
[342506457,1731942635562,-206.4435776,9.999e-05,2]
[342506458,1731942635572,-262.94,9.999e-05,2]
[342506459,1731942635581,-500.0,9.999e-05,2]
[342506460,1731942635593,-500.0,9.999e-05,2]
[342506461,1731942635603,-272.24,9.999e-05,2]
[342506462,1731942635612,-500.0,9.999e-05,2]
[342506463,1731942635622,-500.0,9.999e-05,2]
[342506464,1731942635631,-500.0,9.999e-05,2]
[342506465,1731942635641,-500.0,9.999e-05,2]
[342506466,1731942635652,-500.0,9.999e-05,2]
[342506467,1731942635661,-500.0,9.999e-05,2]
[342506468,1731942635671,-488.72,9.999e-05,2]
[342506469,1731942635681,-227.18,9.999e-05,2]
[342506470,1731942635693,-354.18,9.999e-05,2]
[342506471,1731942635703,-500.0,9.999e-05,2]
[342506472,1731942635712,-500.0,9.999e-05,2]
[342506473,1731942635722,-425.29,9.999e-05,2]
[342506474,1731942635731,-500.0,9.999e-05,2]
[342506475,1731942635740,-500.0,9.999e-05,2]
[342506476,1731942635750,-500.0,9.999e-05,2]
[342506477,1731942635760,-500.0,9.999e-05,2]
[342506478,1731942635769,-173.08,9.999e-05,2]
[342506479,1731942635779,-500.0,9.999e-05,2]
[342506480,1731942635789,-539.54,9.999e-05,2]
[342506481,1731942635799,-500.0,9.999e-05,2]
[342506482,1731942635809,-500.0,9.999e-05,2]
[342506483,1731942635818,-500.0,9.999e-05,2]
[342506484,1731942635827,-500.0,9.999e-05,2]
[342506485,1731942635837,-500.0,9.999e-05,2]
[342506486,1731942635846,-500.0,9.999e-05,2]
[342506487,1731942635856,-500.0,9.999e-05,2]
[342506488,1731942635865,-500.0,9.999e-05,2]
[342506489,1731942635876,-500.0,9.999e-05,2]
[342506490,1731942635886,-500.0,9.999e-05,2]
[342506491,1731942635895,-500.0,9.999e-05,2]
[342506492,1731942635905,-468.56,9.999e-05,2]
[342506493,1731942635914,-500.0,9.999e-05,2]
[342506494,1731942635923,-500.0,9.999e-05,2]
[342506495,1731942635934,-534.16,9.999e-05,2]
[342506496,1731942635945,-500.0,9.999e-05,2]
[342506497,1731942635958,-500.0,9.999e-05,2]
[342506498,1731942635967,-500.0,9.999e-05,2]
[342506499,1731942635977,-500.0,9.999e-05,2]
[342506500,1731942635987,-500.0,9.999e-05,2]
[342506501,1731942635996,-500.0,9.999e-05,2]
[342506502,1731942636006,-500.0,9.999e-05,2]
[342506503,1731942636015,-500.0,9.999e-05,2]
[342506504,1731942636025,-500.0,9.999e-05,2]
[342506505,1731942636034,-500.0,9.999e-05,2]
[342506506,1731942636044,-500.0,9.999e-05,2]
[342506507,1731942636053,-500.0,9.999e-05,2]
[342506508,1731942636063,-500.0,9.999e-05,2]
[342506509,1731942636073,-302.2,9.999e-05,2]
[342506510,1731942636083,-500.0,9.999e-05,2]
[342506511,1731942636092,-357.74,9.999e-05,2]
[342506512,1731942636102,-500.0,9.999e-05,2]
[342506513,1731942636112,-500.0,9.999e-05,2]
[342506514,1731942636122,-500.0,9.999e-05,2]
[342506515,1731942636132,-500.0,9.999e-05,2]
[342506516,1731942636141,-500.0,9.999e-05,2]
[342506517,1731942636151,-500.0,9.999e-05,2]
[342506518,1731942636160,-500.0,9.999e-05,2]
[342506519,1731942636170,-500.0,9.999e-05,2]
[342506520,1731942636180,-500.0,9.999e-05,2]
[342506521,1731942636193,-500.0,9.999e-05,2]
[342506522,1731942636202,-291.42826754,9.999e-05,2]
[342506523,1731942636212,-500.0,9.999e-05,2]
[342506524,1731942636221,-497.7,9.999e-05,2]
[342506525,1731942636231,-500.0,9.999e-05,2]
[342506526,1731942636240,-500.0,9.999e-05,2]
[342506527,1731942636249,-500.0,9.999e-05,2]
[342506528,1731942636259,-261.16,9.999e-05,2]
[342506529,1731942636269,-391.72,9.999e-05,2]
[342506530,1731942636278,-500.0,9.999e-05,2]
[342506531,1731942636288,-500.0,9.999e-05,2]
[342506532,1731942636298,-500.0,9.999e-05,2]
[342506533,1731942636308,-500.0,9.999e-05,2]
[342506534,1731942636318,-500.0,9.999e-05,2]
[342506535,1731942636327,-500.0,9.999e-05,2]
[342506536,1731942636337,-500.0,9.999e-05,2]
[342506537,1731942636347,-500.0,9.999e-05,2]
[342506538,1731942636357,-500.0,9.999e-05,2]
[342506539,1731942636367,-184.22,9.999e-05,2]
[342506540,1731942636377,-500.0,9.999e-05,2]
[342506541,1731942636386,-500.0,9.999e-05,2]
[342506542,1731942636396,-500.0,9.999e-05,2]
[342506543,1731942636406,-500.0,9.999e-05,2]
[342506544,1731942636415,-500.0,9.999e-05,2]
[342506545,1731942636425,-500.0,9.999e-05,2]
[342506546,1731942636438,-500.0,9.999e-05,2]
[342506547,1731942636447,-351.38053109,9.999e-05,2]
[342506548,1731942636457,-500.0,9.999e-05,2]
[342506549,1731942636466,-500.0,9.999e-05,2]
[342506550,1731942636476,-500.0,9.999e-05,2]
[342506551,1731942636485,-500.0,9.999e-05,2]
[342506552,1731942636495,-175.44,9.999e-05,2]
[342506553,1731942636505,-500.0,9.999e-05,2]
[342506554,1731942636519,-500.0,9.999e-05,2]
[342506555,1731942636529,-500.0,9.999e-05,2]
[342506556,1731942636539,-500.0,9.999e-05,2]
[342506557,1731942636549,-500.0,9.999e-05,2]
[342506558,1731942636558,-500.0,9.999e-05,2]
[342506559,1731942636568,-500.0,9.999e-05,2]
[342506560,1731942636579,-500.0,9.999e-05,2]
[342506561,1731942636589,-500.0,9.999e-05,2]
[342506562,1731942636599,-500.0,9.999e-05,2]
[342506563,1731942636609,-500.0,9.999e-05,2]
[342506564,1731942636619,-500.0,9.999e-05,2]
[342506565,1731942636629,-500.0,9.999e-05,2]
[342506566,1731942636638,-500.0,9.999e-05,2]
[342506567,1731942636648,-500.0,9.999e-05,2]
[342506568,1731942636658,-500.0,9.999e-05,2]
[342506569,1731942636668,-500.0,9.999e-05,2]
[342506570,1731942636677,-265.8,9.999e-05,2]
[342506571,1731942636690,-500.0,9.999e-05,2]
[342506572,1731942636699,-500.0,9.999e-05,2]
[342506573,1731942636709,-500.0,9.999e-05,2]
[342506574,1731942636719,-500.0,9.999e-05,2]
[342506575,1731942636729,-500.0,9.999e-05,2]
[342506576,1731942636738,-649.68,9.999e-05,2]
[342506577,1731942636748,-500.0,9.999e-05,2]
[342506578,1731942636758,-500.0,9.999e-05,2]
[342506579,1731942636767,-500.0,9.999e-05,2]
[342506580,1731942636776,-500.0,9.999e-05,2]
[342506581,1731942636786,-500.0,9.999e-05,2]
[342506582,1731942636795,-340.09,9.999e-05,2]
[342506583,1731942636804,-500.0,9.999e-05,2]
[342506584,1731942636814,-196.39,9.999e-05,2]
[342506585,1731942636824,-1500.0,9.999e-05,2]
[342506586,1731942636834,-500.0,9.999e-05,2]
[342506587,1731942636843,-179.44915735,9.999e-05,2]
[342506588,1731942636853,-500.0,9.999e-05,2]
[342506589,1731942636863,-316.55,9.999e-05,2]
[342506590,1731942636872,-500.0,9.999e-05,2]
[342506591,1731942636882,-488.96,9.999e-05,2]
[342506592,1731942636892,-500.0,9.999e-05,2]
[342506593,1731942636902,-500.0,9.999e-05,2]
[342506594,1731942636912,-500.0,9.999e-05,2]
[342506595,1731942636921,-500.0,9.999e-05,2]
[342506596,1731942636931,-500.0,9.999e-05,2]
[342506597,1731942636944,-203.3959562,9.999e-05,2]
[342506598,1731942636954,-500.0,9.999e-05,2]
[342506599,1731942636965,-500.0,9.999e-05,2]
[342506600,1731942636975,-500.0,9.999e-05,2]
[342506601,1731942636986,-500.0,9.999e-05,2]
[342506602,1731942636996,-500.0,9.999e-05,2]
[342506603,1731942637006,-500.0,9.999e-05,2]
[342506604,1731942637017,-500.0,9.999e-05,2]
[342506605,1731942637028,-500.0,9.999e-05,2]
[342506606,1731942637037,-500.0,9.999e-05,2]
[342506607,1731942637047,-500.0,9.999e-05,2]
[342506608,1731942637056,-500.0,9.999e-05,2]
[342506609,1731942637066,-500.0,9.999e-05,2]
[342506610,1731942637076,-500.0,9.999e-05,2]
[342506611,1731942637086,-500.0,9.999e-05,2]
[342506612,1731942637096,-500.0,9.999e-05,2]
[342506613,1731942637106,-199.7,9.999e-05,2]
[342506614,1731942637115,-500.0,9.999e-05,2]
[342506615,1731942637124,-500.0,9.999e-05,2]
[342506616,1731942637134,-851.24,9.999e-05,2]
[342506617,1731942637144,-851.24,9.999e-05,2]
[342506618,1731942637153,-851.24,9.999e-05,2]
[342506619,1731942637163,-851.24,9.999e-05,2]
[342506620,1731942637173,-851.24,9.999e-05,2]
[342506621,1731942637185,-851.24,9.999e-05,2]
[342506622,1731942637195,-851.24,9.999e-05,2]
[342506623,1731942637205,-851.24,9.999e-05,2]
[342506624,1731942637214,-851.24,9.999e-05,2]
[342506625,1731942637224,-851.24,9.999e-05,2]
[342506626,1731942637234,-851.24,9.999e-05,2]
[342506627,1731942637244,-851.24,9.999e-05,2]
[342506628,1731942637255,-851.24,9.999e-05,2]
[342506629,1731942637264,-851.24,9.999e-05,2]
[342506630,1731942637274,-851.24,9.999e-05,2]
[342506631,1731942637284,-851.24,9.999e-05,2]
[342506632,1731942637293,-851.24,9.999e-05,2]
[342506633,1731942637303,-851.24,9.999e-05,2]
[342506634,1731942637313,-851.24,9.999e-05,2]
[342506635,1731942637323,-851.24,9.999e-05,2]
[342506636,1731942637333,-851.24,9.999e-05,2]
[342506637,1731942637342,-851.31175161,9.999e-05,2]
[342506638,1731942637352,-500.0,9.999e-05,2]
[342506639,1731942637362,-570.56,9.999e-05,2]
[342506640,1731942637371,-500.0,9.999e-05,2]
[342506641,1731942637381,-500.0,9.999e-05,2]
[342506642,1731942637391,-500.0,9.999e-05,2]
[342506643,1731942637400,-500.0,9.999e-05,2]
[342506644,1731942637410,-500.0,9.999e-05,2]
[342506645,1731942637420,-257.03568615,9.999e-05,2]
[342506646,1731942637430,-500.0,9.999e-05,2]
[342506647,1731942637441,-500.0,9.999e-05,2]
[342506648,1731942637451,-160.08,9.999e-05,2]
[342506649,1731942637460,-557.05,9.999e-05,2]
[342506650,1731942637469,-557.05,9.999e-05,2]
[342506651,1731942637478,-557.05,9.999e-05,2]
[342506652,1731942637488,-3920.76,9.999e-05,2]
[342506653,1731942637497,-557.05,9.999e-05,2]
[342506654,1731942637507,-3920.76,9.999e-05,2]
[342506655,1731942637521,-557.05,9.999e-05,2]
[342506656,1731942637534,-3920.76,9.999e-05,2]
[342506657,1731942637544,-557.05,9.999e-05,2]
[342506658,1731942637553,-3920.76,9.999e-05,2]
[342506659,1731942637565,-557.05,9.999e-05,2]
[342506660,1731942637575,-3920.76,9.999e-05,2]
[342506661,1731942637586,-557.05,9.999e-05,2]
[342506662,1731942637597,-557.05,9.999e-05,2]
[342506663,1731942637606,-3920.76,9.999e-05,2]
[342506664,1731942637617,-557.05,9.999e-05,2]
[342506665,1731942637627,-3920.76,9.999e-05,2]
[342506666,1731942637637,-3920.76,9.999e-05,2]
[342506667,1731942637646,-557.05,9.999e-05,2]
[342506668,1731942637656,-557.05,9.999e-05,2]
[342506669,1731942637666,-3920.76,9.999e-05,2]
[342506670,1731942637676,-3920.76,9.999e-05,2]
[342506671,1731942637688,-557.05,9.999e-05,2]
[342506672,1731942637697,-3920.76,9.999e-05,2]
[342506673,1731942637707,-557.05,9.999e-05,2]
[342506674,1731942637717,-3920.76,9.999e-05,2]
[342506675,1731942637727,-557.05,9.999e-05,2]
[342506676,1731942637736,-557.05,9.999e-05,2]
[342506677,1731942637746,-3920.76,9.999e-05,2]
[342506678,1731942637755,-557.05,9.999e-05,2]
[342506679,1731942637765,-3920.76,9.999e-05,2]
[342506680,1731942637775,-557.05,9.999e-05,2]
[342506681,1731942637784,-3920.76,9.999e-05,2]
[342506682,1731942637794,-557.05,9.999e-05,2]
[342506683,1731942637804,-3920.76,9.999e-05,2]
[342506684,1731942637814,-3920.76,9.999e-05,2]
[342506685,1731942637823,-557.05,9.999e-05,2]
[342506686,1731942637834,-3920.76,9.999e-05,2]
[342506687,1731942637844,-557.05,9.999e-05,2]
[342506688,1731942637855,-3920.76,9.999e-05,2]
[342506689,1731942637864,-557.25,9.999e-05,2]
[342506690,1731942637874,-3920.76,9.999e-05,2]
[342506691,1731942637884,-3920.76,9.999e-05,2]
[342506692,1731942637893,-3920.76,9.999e-05,2]
[342506693,1731942637903,-3920.97613133,9.999e-05,2]
[342506694,1731942637912,-6129.88763115,0.0001,2]
[342506695,1731942637921,-207609.04213307,0.0001,2]
[342506696,1731942637931,-4345500.82334303,0.0001,2]
[342506697,1731942638362,-45004.4595,0.0001,2]
[342506704,1731942638711,-9055.43,0.0001,2]
[342506705,1731942638723,-5453.33985,0.0001,2]
[342506706,1731942638750,-3611.6065363,0.0001,2]
[342506707,1731942638763,-2222.2349995,0.0001,2]
[342506708,1731942638812,-1734.95697171,0.0001,2]
[342506715,1731942640735,887.07,8.219e-05,2]
[342506716,1731942640748,-903.705,0.0001,2]
[342506717,1731942640760,-489.75299984,0.0001,2]
[342506739,1731942643411,-500.0,9.992e-05,2]
[342506741,1731942643421,-577.69887499,9.998e-05,2]
[342506743,1731942643431,-71932.18104214,0.0001,2]
[342506744,1731942643588,-8792.8510881,0.0001,2]
[342506745,1731942643651,-4686.92349395,0.0001,2]
[342506753,1731942646381,-185.292055,9.332e-05,2]
[342506754,1731942646391,-100.2789183,9.799e-05,2]
[342506757,1731942646442,-85.0131367,9.799e-05,2]
[342506758,1731942646451,-500.0,9.992e-05,2]
[342506759,1731942646460,-8253.72670347,0.0001,2]
[342506760,1731942646528,-519.14852251,0.0001,2]
[342506761,1731942646539,-396.71437261,0.0001,2]
[342506762,1731942646551,-2925.68582645,0.0001,2]
[342506763,1731942646600,-49124.26706634,0.0001,2]
[342506764,1731942646611,-1000.0,0.0001,2]
[342506765,1731942646620,-1000.0,0.0001,2]
[342506766,1731942646630,-88224.02470437,0.0001,2]
[342506767,1731942646641,-37191.318,0.0001,2]
[342506768,1731942646653,-637.59686912,0.0001,2]
[342506769,1731942646664,-6124.83232754,0.0001,2]
[342506770,1731942646674,-1000.0,0.0001,2]
[342506771,1731942646684,-1000.0,0.0001,2]
[342506772,1731942646696,-1000.0,0.0001,2]
[342506773,1731942646705,-81372.07590291,0.0001,2]
[342506774,1731942646738,-1436.43268165,0.0001,2]
[342506775,1731942646787,-500.0,9.992e-05,2]
[342506777,1731942646797,-2954.89981,0.0001,2]
[342506778,1731942646809,-2112.68946204,0.0001,2]
[342506779,1731942646820,-1609.05,0.0001,2]
[342506783,1731943383768,842.71,8.219e-05,2]
[342506814,1731943831629,-301.71,8.6e-05,2]
[342506815,1731943831639,-250.0,8.628e-05,2]
[342506816,1731943831648,-1000.0,8.652e-05,2]
[342506817,1731943831658,-1732.32,8.674e-05,2]
[342506818,1731943831667,-18875.79,8.719e-05,2]
[342506819,1731943831677,-167.88,8.892e-05,2]
[342506820,1731943831686,-167.88,8.903e-05,2]
[342506821,1731943831695,-167.88,8.914e-05,2]
[342506822,1731943831706,-198.85,8.915e-05,2]
[342506823,1731943831717,-734.41,8.92e-05,2]
[342506824,1731943831729,-167.88,8.925e-05,2]
[342506825,1731943831738,-564.2,8.936e-05,2]
[342506826,1731943831747,-167.88,8.936e-05,2]
[342506827,1731943831757,-462.4628,8.973e-05,2]
[342506828,1731943831769,-657.7072,8.973e-05,2]
[342506829,1731943831780,-156.75,8.996e-05,2]
[342506830,1731943831790,-362.49,9.138e-05,2]
[342506831,1731943831800,-150.0,9.138e-05,2]
[342506832,1731943831810,-150.0,9.138e-05,2]
[342506833,1731943831820,-362.49,9.138e-05,2]
[342506834,1731943831829,-208.118211,9.332e-05,2]
[342506835,1731943831839,-161.821463,9.332e-05,2]
[342506836,1731943831849,-150.0,9.669e-05,2]
[342506837,1731943831859,-999.99,9.67e-05,2]
[342506838,1731943831869,-3628.5,9.67e-05,2]
[342506839,1731943831879,-150.99,9.67e-05,2]
[342506840,1731943831888,-299.99,9.67e-05,2]
[342506841,1731943831902,-192.10626629,9.67e-05,2]
[342506842,1731943831925,-12286.14373371,9.67e-05,2]
[342506843,1731943831936,-7327.63,9.67e-05,2]
[342506844,1731943831946,-3368.52050394,9.67e-05,2]
[342506845,1731943831958,-1050.17439098,9.67e-05,2]
[342506846,1731943831971,-130.23510508,9.67e-05,2]
[342506847,1731943831983,-187.93,9.67e-05,2]
[342506848,1731943831993,-301.71,9.675e-05,2]
[342506849,1731943832003,-302.35232391,9.698e-05,2]
[342506850,1731943832016,-804.32329587,9.698e-05,2]
[342506851,1731943832026,-57.50484469,9.699e-05,2]
[342506852,1731943832038,-546.70831491,9.699e-05,2]
[342506853,1731943832050,-615.65533628,9.699e-05,2]
[342506854,1731943832256,-10842.70630412,9.699e-05,2]
[342506855,1731943832266,-751.8985,9.699e-05,2]
[342506857,1731943832276,-762.8317,9.699e-05,2]
[342506859,1731943832285,-1636.2122,9.699e-05,2]
[342506861,1731943832295,-1106.67561978,9.699e-05,2]
[342506863,1731943832304,-1000.0,9.734e-05,2]
[342506865,1731943832314,-3224.92322998,9.779e-05,2]
[342506867,1731943832324,-12623.40088548,9.798e-05,2]
[342506869,1731943832334,-208.118211,9.799e-05,2]
[342506871,1731943832345,-32288.39582574,9.799e-05,2]
[342506875,1731943832383,-85240.52674358,9.799e-05,2]
[342506880,1731943832653,-62660.0,9.799e-05,2]
[342506885,1731943837638,-1215.40923805,9.799e-05,2]
[342506887,1731943837650,-2403.78704119,9.799e-05,2]
[342506888,1731943837681,-32910.63595144,9.799e-05,2]
[342506889,1731943837690,-505.96,9.863e-05,2]
[342506890,1731943837700,-500.0,9.863e-05,2]
[342506891,1731943837709,-277.12525257,9.863e-05,2]
[342506892,1731943837718,-500.0,9.863e-05,2]
[342506893,1731943837729,-416.3943814,9.863e-05,2]
[342506894,1731943837738,-500.0,9.863e-05,2]
[342506895,1731943837748,-367.45609132,9.863e-05,2]
[342506896,1731943837758,-500.0,9.863e-05,2]
[342506897,1731943837767,-1600.19,9.863e-05,2]
[342506898,1731943837777,-500.0,9.863e-05,2]
[342506899,1731943837786,-8427.94,9.863e-05,2]
[342506900,1731943837795,-3961.39,9.863e-05,2]
[342506901,1731943837805,-181.7531802,9.863e-05,2]
[342506902,1731943837814,-500.0,9.863e-05,2]
[342506903,1731943837823,-500.0,9.863e-05,2]
[342506904,1731943837833,-500.0,9.863e-05,2]
[342506905,1731943837842,-513.83599337,9.863e-05,2]
[342506906,1731943837851,-2254.1,9.863e-05,2]
[342506907,1731943837860,-500.0,9.863e-05,2]
[342506908,1731943837870,-500.0,9.863e-05,2]
[342506909,1731943837879,-1147.46,9.863e-05,2]
[342506910,1731943837888,-1652.95,9.863e-05,2]
[342506911,1731943837902,-500.0,9.863e-05,2]